{"text_format":"1","workbook":"xlsx","n_sheets":1,"sheets":["Original_V06"],"not_rendered":{"charts":0,"images":1,"macros":1,"external_links":0,"defined_names":13,"comments":1,"pivot_tables":0},"unopened":[],"bounds":{"document_bytes":16777216,"sheet_cells":100000,"rows_first":2000,"rows_last":500,"rows_between":2000,"halvings":0,"cell_chars":16384,"cell_head_chars":4096},"cells_cut":0,"cells_raw":0,"read":"whole","date_system":"1900"}

{"sheet":"Original_V06","index":0,"n_rows":60,"n_cols":7,"rows_kept":60,"cut":false,"hidden":false,"merged":[[26,3,26,4],[36,3,36,5],[40,3,40,5],[38,3,38,5],[33,3,33,5],[34,3,34,5],[35,3,35,5],[30,3,30,4],[31,3,31,4],[26,5,26,6],[27,5,27,6],[28,5,28,6],[27,3,27,4],[28,3,28,4],[37,3,37,5],[52,2,52,4],[29,5,29,6],[30,5,30,6],[31,5,31,6],[49,2,49,3],[47,5,47,6],[39,3,39,5],[29,3,29,4],[44,0,46,4],[6,1,6,6],[7,1,7,6],[24,2,24,3],[13,1,13,5],[18,0,18,6],[21,0,21,6],[23,2,23,3],[10,2,10,4],[10,5,10,6],[12,2,12,5],[15,0,15,6],[23,0,23,1],[24,0,24,1]]}
[]
["MUSS-Felder / Champs obligatoires          "]
[]
["Nr. / N°",null,null,null,null,"Datum / Date"]
[]
["Servicestelle/ Station de service:",null,null,null,null,"SA/"]
["Name / Nom"]
["PLZ Ort / CP Lieu"]
["MWST / TVA",null,null,null,null,"Sonderentscheid"]
[]
["Marke / Marque:",null,"Modell / Modèle:"]
["Serien-Nr/N° série:"]
["Kaufort/Lieu d'achat:",null,"Kaufdatum / Date d'achat"]
[null,"Garantieverlängerung / Extension de garantie N°:"]
["Art des Defektes / Défectuosité:"]
[]
[]
["Standortadresse (genaue Adresse) / Emplacement (adresse précise)"]
[]
[]
["Eigentümer (genaue Adresse) / Propriétaire (adresse précise)"]
[]
[]
["Arbeitsauftrag vom / Demande de réparation du:"]
["Ausgeführt am / Exécutée le"]
[]
["Datum                 Date","Art der Arbeit                                                Spécification des travaux","Std.                    Heures","Ansatz  Tarif",null,"Vergütung                                Compensation"]
[null,null,null,null,null,{"$f":"C28*D28","v":0}]
[null,null,null,null,null,{"$f":"C29*D29","v":0}]
[null,null,null,null,null,{"$f":"C30*D30","v":0}]
[null,null,null,null,null,{"$f":"C31*D31","v":0}]
["Reisepauschale (einmalig) / Déplacement (uniquement)",null,null,null,null,{"$f":"D32","v":0}]
[]
["Artikel-Nummer       N° d'article","Bezeichnung                                                     Description","Stk.               Quant.","Nettopreis pro Stk.                Prix net par pièce",null,null,"Vergütung  Compensation"]
[null,null,null,null,null,null,{"$f":"D35*C35","v":0}]
[null,null,null,null,null,null,{"$f":"+D36*C36","v":0}]
[null,null,null,null,null,null,0]
[null,null,null,null,null,null,0]
[null,null,null,null,null,null,0]
[null,null,null,null,null,null,0]
[null,"Porti",null,null,null,null,0]
[null,null,null,null,null,null,{"$f":"SUM(G35:G41)","v":0}]
[]
[null,null,null,null,null,"Subtotal",{"$f":"F28+F29+F30+F31+F32+G35+G36+G37+G38+G39+G40+Text8","v":0}]
["Der Garantieantrag muss innert 30 Tage nach Ausführdatum eingesandt werden. Spätestens nach 3 Monaten verfällt der Anspruch.                                                                                                    La demande doit être envoyée dans les 30 jours après la date d'intervention. 3 mois après la date d'exécution la demande devient caduque.",null,null,null,null,"MWST / TVA  8.1%",{"$f":"ROUND(20*(G44*8.1%),0)/20","v":0}]
[null,null,null,null,null,"Total",{"$f":"SUM(G44:G45)","v":0}]
[]
["FORS AG/SA, Service/Garantie, Schaftenholzweg 8, 2557 Studen BE"]
[]
["Wird von FORS ausgefüllt / A remplir par FORS",null,"Interne Nr.:"]
[]
[]
["Datum:",null,"Grund / Raison:"]
["Konto 4300/1/2/3/4/",{"$f":"ROUND(20*((F28+F29)*108%),0)/20","v":0}]
["Konto 4305",{"$f":"ROUND(20*((SUM(G35:G40))*108%),0)/20","v":0}]
["Konto 4310",{"$f":"ROUND(20*(F30*108%),0)/20","v":0}]
["Konto 4311",{"$f":"ROUND(20*(F31*108%),0)/20","v":0}]
["Konto 4312",{"$f":"ROUND(20*(F32*108%),0)/20","v":0}]
["Konto 4313",{"$f":"ROUND(20*((C41*D41)*108%),0)/20","v":0}]
["Visum:"]